[Event "*** Titled Tuesday Blitz"]
[Site "Chess.com"]
[Date "2021.02.16"]
[Round "2"]
[White "cassoulet"]
[Black "hypert"]
[Result "0-1"]
[WhiteElo "2726"]
[BlackElo "2508"]
[TimeControl "180+1"]
[EndTime "10:18:39 PST"]
[Termination "hypert won by resignation"]

1. e4 {[%clk 0:03:00.9]} 1... c5 {[%clk 0:02:59.5]} 2. Nf3 {[%clk 0:03:00.9]}
2... e6 {[%clk 0:03:00.1]} 3. g3 {[%clk 0:02:59.2]} 3... d5 {[%clk 0:02:59.6]}
4. exd5 {[%clk 0:02:59]} 4... exd5 {[%clk 0:03:00.5]} 5. Bg2 {[%clk 0:02:59.6]}
5... Nf6 {[%clk 0:03:00.9]} 6. O-O {[%clk 0:02:59.6]} 6... Nc6 {[%clk
0:03:00.7]} 7. d4 {[%clk 0:03:00.2]} 7... Be6 {[%clk 0:02:53.9]} 8. Re1 {[%clk
0:02:58.8]} 8... Be7 {[%clk 0:02:51.7]} 9. c3 {[%clk 0:02:51]} 9... cxd4 {[%clk
0:02:50.4]} 10. Nxd4 {[%clk 0:02:50.5]} 10... Nxd4 {[%clk 0:02:50.1]} 11. Qxd4
{[%clk 0:02:51]} 11... O-O {[%clk 0:02:50.2]} 12. Bg5 {[%clk 0:02:49.1]} 12...
h6 {[%clk 0:02:48.8]} 13. Bf4 {[%clk 0:02:45]} 13... a6 {[%clk 0:02:45.7]} 14.
Nd2 {[%clk 0:02:43.2]} 14... Rc8 {[%clk 0:02:44.7]} 15. Rad1 {[%clk 0:02:41.1]}
15... Bc5 {[%clk 0:02:37.4]} 16. Qd3 {[%clk 0:02:35.8]} 16... Ng4 {[%clk
0:02:33.2]} 17. Re2 {[%clk 0:02:27.7]} 17... Qb6 {[%clk 0:02:32.6]} 18. Qf3
{[%clk 0:02:19.3]} 18... Nxf2 {[%clk 0:02:02.6]} 19. Rxf2 {[%clk 0:02:16.5]}
19... Bxf2+ {[%clk 0:02:00.1]} 20. Qxf2 {[%clk 0:02:17.4]} 20... Qxb2 {[%clk
0:02:00.1]} 21. Nf3 {[%clk 0:02:01.1]} 21... Qxf2+ {[%clk 0:01:53.4]} 22. Kxf2
{[%clk 0:02:02]} 22... Rxc3 {[%clk 0:01:52.3]} 23. Nd4 {[%clk 0:02:01.1]} 23...
Rfc8 {[%clk 0:01:46.3]} 24. Rb1 {[%clk 0:01:59.8]} 24... b5 {[%clk 0:01:45.1]}
25. Bf3 {[%clk 0:01:55.7]} 25... R8c4 {[%clk 0:01:41.4]} 26. Be3 {[%clk
0:01:47.4]} 26... Ra4 {[%clk 0:01:33.4]} 27. Ne2 {[%clk 0:00:55.4]} 27... Rc2
{[%clk 0:01:28.9]} 28. Rd1 {[%clk 0:00:46.6]} 28... Raxa2 {[%clk 0:01:27.2]} 29.
Ke1 {[%clk 0:00:43.5]} 29... b4 {[%clk 0:01:23.6]} 30. Nc1 {[%clk 0:00:33.1]}
30... Ra3 {[%clk 0:01:16.1]} 31. Nd3 {[%clk 0:00:33.3]} 31... b3 {[%clk
0:01:08.8]} 32. Nb4 {[%clk 0:00:31.5]} 32... Rc4 {[%clk 0:01:01.1]} 33. Nxd5
{[%clk 0:00:23.7]} 33... b2 {[%clk 0:00:58.1]} 34. Nb6 {[%clk 0:00:17.7]} 34...
Ra1 {[%clk 0:00:50.8]} 35. Nxc4 {[%clk 0:00:17.5]} 35... Rxd1+ {[%clk
0:00:42.5]} 36. Bxd1 {[%clk 0:00:18.4]} 36... b1=Q {[%clk 0:00:42.1]} 37. Nd2
{[%clk 0:00:18.4]} 37... Qb4 {[%clk 0:00:38.5]} 38. Kf2 {[%clk 0:00:13.9]} 38...
a5 {[%clk 0:00:37.9]} 0-1

[Event "*** Titled Tuesday Blitz"]
[Site "Chess.com"]
[Date "2021.02.16"]
[Round "2"]
[White "FredyMatsuura"]
[Black "FontVella8"]
[Result "0-1"]
[WhiteElo "2286"]
[BlackElo "2571"]
[TimeControl "180+1"]
[EndTime "10:18:40 PST"]
[Termination "FontVella8 won on time"]

1. d4 {[%clk 0:03:00.9]} 1... Nf6 {[%clk 0:02:58.2]} 2. c4 {[%clk 0:03:00.5]}
2... e6 {[%clk 0:02:58.7]} 3. Nf3 {[%clk 0:02:59.9]} 3... Bb4+ {[%clk
0:02:58.6]} 4. Bd2 {[%clk 0:02:58.5]} 4... c5 {[%clk 0:02:55.4]} 5. Bxb4 {[%clk
0:02:56.3]} 5... cxb4 {[%clk 0:02:54.8]} 6. g3 {[%clk 0:02:56.9]} 6... O-O
{[%clk 0:02:34.8]} 7. Bg2 {[%clk 0:02:55.2]} 7... d6 {[%clk 0:02:35.2]} 8. O-O
{[%clk 0:02:54.2]} 8... Re8 {[%clk 0:02:35.6]} 9. a3 {[%clk 0:02:54.4]} 9...
bxa3 {[%clk 0:02:34.5]} 10. Rxa3 {[%clk 0:02:52.1]} 10... Nc6 {[%clk 0:02:33.5]}
11. Nc3 {[%clk 0:02:50.9]} 11... e5 {[%clk 0:02:33.2]} 12. dxe5 {[%clk
0:02:36.2]} 12... dxe5 {[%clk 0:02:32]} 13. Nb5 {[%clk 0:02:29.8]} 13... Be6
{[%clk 0:02:23.5]} 14. Nd6 {[%clk 0:02:20.6]} 14... Re7 {[%clk 0:02:17.8]} 15.
c5 {[%clk 0:02:10.6]} 15... Rd7 {[%clk 0:02:15.1]} 16. Qa4 {[%clk 0:02:07.7]}
16... Ne8 {[%clk 0:02:09.8]} 17. Nxb7 {[%clk 0:01:49.7]} 17... Rxb7 {[%clk
0:02:03.6]} 18. Qxc6 {[%clk 0:01:49.5]} 18... Rc7 {[%clk 0:02:02]} 19. Qb5
{[%clk 0:01:40.9]} 19... Rb8 {[%clk 0:02:01.8]} 20. Qa4 {[%clk 0:01:36]} 20...
Rxc5 {[%clk 0:01:57.5]} 21. Qxa7 {[%clk 0:01:31.6]} 21... Rcb5 {[%clk 0:01:48]}
22. e3 {[%clk 0:01:29.4]} 22... f6 {[%clk 0:01:42.4]} 23. Qa6 {[%clk 0:01:06.4]}
23... Bf7 {[%clk 0:01:39.1]} 24. Bh3 {[%clk 0:00:53.7]} 24... Nc7 {[%clk
0:01:33.1]} 25. Qc6 {[%clk 0:00:47.8]} 25... Bd5 {[%clk 0:01:24.9]} 26. Qd7
{[%clk 0:00:21]} 26... Qxd7 {[%clk 0:01:21.4]} 27. Bxd7 {[%clk 0:00:19.7]} 27...
Bxf3 {[%clk 0:01:21.6]} 28. Bxb5 {[%clk 0:00:20.2]} 28... Rxb5 {[%clk
0:01:15.9]} 29. Ra7 {[%clk 0:00:19.6]} 29... Rc5 {[%clk 0:01:02.7]} 30. h3
{[%clk 0:00:13.7]} 30... Kf7 {[%clk 0:01:01.5]} 31. b4 {[%clk 0:00:12.2]} 31...
Rc2 {[%clk 0:00:59.7]} 32. b5 {[%clk 0:00:12.2]} 32... Kg6 {[%clk 0:00:55.4]}
33. b6 {[%clk 0:00:07.9]} 33... Ne6 {[%clk 0:00:54]} 34. Rb1 {[%clk 0:00:05.3]}
34... Rc8 {[%clk 0:00:53.1]} 35. g4 {[%clk 0:00:02.7]} 35... Ng5 {[%clk
0:00:51.2]} 36. Kh2 {[%clk 0:00:02.6]} 36... h5 {[%clk 0:00:43.5]} 0-1

[Event "*** Titled Tuesday Blitz"]
[Site "Chess.com"]
[Date "2021.02.16"]
[Round "2"]
[White "korkmaz16"]
[Black "tusplingher"]
[Result "0-1"]
[WhiteElo "2405"]
[BlackElo "2425"]
[TimeControl "180+1"]
[EndTime "10:18:40 PST"]
[Termination "tusplingher won on time"]

1. e4 {[%clk 0:03:00.9]} 1... c5 {[%clk 0:02:59.3]} 2. Nc3 {[%clk 0:03:00.5]}
2... Nc6 {[%clk 0:02:58.7]} 3. f4 {[%clk 0:03:00.7]} 3... g6 {[%clk 0:02:58.1]}
4. Nf3 {[%clk 0:03:00.5]} 4... Bg7 {[%clk 0:02:58.1]} 5. Bb5 {[%clk 0:03:00.8]}
5... Nd4 {[%clk 0:02:57.1]} 6. O-O {[%clk 0:03:00.4]} 6... Nxb5 {[%clk
0:02:56.5]} 7. Nxb5 {[%clk 0:03:00.4]} 7... Nf6 {[%clk 0:02:48.4]} 8. e5 {[%clk
0:02:51.1]} 8... Nd5 {[%clk 0:02:46.3]} 9. d4 {[%clk 0:02:48.7]} 9... Nc7 {[%clk
0:02:19.1]} 10. Nxc7+ {[%clk 0:01:52.4]} 10... Qxc7 {[%clk 0:02:17.8]} 11. d5
{[%clk 0:01:53.1]} 11... O-O {[%clk 0:02:13.1]} 12. c4 {[%clk 0:01:49.8]} 12...
d6 {[%clk 0:02:12.7]} 13. b3 {[%clk 0:01:21.7]} 13... dxe5 {[%clk 0:02:09.1]}
14. Nxe5 {[%clk 0:01:09.4]} 14... Bxe5 {[%clk 0:02:05.8]} 15. fxe5 {[%clk
0:01:09.4]} 15... Qxe5 {[%clk 0:02:05.3]} 16. Rb1 {[%clk 0:01:00.9]} 16... Bf5
{[%clk 0:02:00]} 17. Rb2 {[%clk 0:01:00.7]} 17... e6 {[%clk 0:01:53.8]} 18. Re1
{[%clk 0:00:47.9]} 18... Qg7 {[%clk 0:01:47.8]} 19. d6 {[%clk 0:00:44.8]} 19...
Rad8 {[%clk 0:01:44.9]} 20. Rd2 {[%clk 0:00:44.2]} 20... e5 {[%clk 0:01:28.3]}
21. Rd5 {[%clk 0:00:42.5]} 21... f6 {[%clk 0:01:17.9]} 22. Rxc5 {[%clk
0:00:41.7]} 22... Qd7 {[%clk 0:01:14.6]} 23. Rd5 {[%clk 0:00:40]} 23... Be6
{[%clk 0:01:13.2]} 24. Rd2 {[%clk 0:00:39.7]} 24... Qc6 {[%clk 0:01:11.7]} 25.
Ba3 {[%clk 0:00:36.6]} 25... Rd7 {[%clk 0:01:10]} 26. Qe2 {[%clk 0:00:32.5]}
26... Qb6+ {[%clk 0:00:55.5]} 27. c5 {[%clk 0:00:30.8]} 27... Qa5 {[%clk
0:00:53.8]} 28. c6 {[%clk 0:00:12.4]} 28... bxc6 {[%clk 0:00:49.8]} 29. Bb2
{[%clk 0:00:08.1]} 29... Qc5+ {[%clk 0:00:45.6]} 30. Qf2 {[%clk 0:00:08.1]}
30... Qb4 {[%clk 0:00:33.9]} 31. Qh4 {[%clk 0:00:06.5]} 31... Qxh4 {[%clk
0:00:33.3]} 0-1

[Event "*** Titled Tuesday Blitz"]
[Site "Chess.com"]
[Date "2021.02.16"]
[Round "2"]
[White "Isajevsky_Anton"]
[Black "DrVelja"]
[Result "0-1"]
[WhiteElo "2539"]
[BlackElo "2879"]
[TimeControl "180+1"]
[EndTime "10:18:41 PST"]
[Termination "DrVelja won on time"]

1. c4 {[%clk 0:03:00.9]} 1... Nf6 {[%clk 0:02:59]} 2. Nc3 {[%clk 0:02:59.9]}
2... g6 {[%clk 0:02:59.9]} 3. g3 {[%clk 0:02:56.8]} 3... Bg7 {[%clk 0:02:59.3]}
4. Bg2 {[%clk 0:02:56.6]} 4... O-O {[%clk 0:03:00]} 5. e3 {[%clk 0:02:53.4]}
5... d6 {[%clk 0:03:00.9]} 6. Nge2 {[%clk 0:02:53.1]} 6... e5 {[%clk 0:03:00.4]}
7. O-O {[%clk 0:02:52.9]} 7... Nc6 {[%clk 0:02:59.2]} 8. d3 {[%clk 0:02:50.7]}
8... a5 {[%clk 0:02:46.6]} 9. Rb1 {[%clk 0:02:17.6]} 9... Be6 {[%clk 0:02:30.5]}
10. Nd5 {[%clk 0:02:17.2]} 10... Rb8 {[%clk 0:02:02]} 11. a3 {[%clk 0:02:07.3]}
11... Ne7 {[%clk 0:02:02.1]} 12. e4 {[%clk 0:01:41]} 12... b5 {[%clk 0:01:50.4]}
13. Nec3 {[%clk 0:00:47.1]} 13... c6 {[%clk 0:01:45]} 14. Nxf6+ {[%clk
0:00:44.1]} 14... Bxf6 {[%clk 0:01:45.9]} 15. cxb5 {[%clk 0:00:44.3]} 15... cxb5
{[%clk 0:01:46.8]} 16. b4 {[%clk 0:00:44.5]} 16... axb4 {[%clk 0:01:34.4]} 17.
Rxb4 {[%clk 0:00:43.3]} 17... d5 {[%clk 0:01:29.8]} 18. Nxb5 {[%clk 0:00:39]}
18... dxe4 {[%clk 0:01:21.1]} 19. dxe4 {[%clk 0:00:38.1]} 19... Nc6 {[%clk
0:01:19.6]} 20. Rb2 {[%clk 0:00:34.4]} 20... Bc4 {[%clk 0:01:15.4]} 21. a4
{[%clk 0:00:30.9]} 21... Bxf1 {[%clk 0:01:12.2]} 22. Qxf1 {[%clk 0:00:30.9]}
22... Nd4 {[%clk 0:01:09.8]} 23. Be3 {[%clk 0:00:20.5]} 23... Bg5 {[%clk
0:01:06.4]} 24. f4 {[%clk 0:00:19.7]} 24... Bf6 {[%clk 0:00:59.3]} 25. Bxd4
{[%clk 0:00:19.6]} 25... exd4 {[%clk 0:00:58.3]} 26. e5 {[%clk 0:00:20.5]} 26...
Be7 {[%clk 0:00:58.7]} 27. Qd3 {[%clk 0:00:19]} 27... Qa5 {[%clk 0:00:59.3]} 28.
Ra2 {[%clk 0:00:18]} 28... Rfc8 {[%clk 0:00:57.3]} 29. Bf1 {[%clk 0:00:18.4]}
29... Rc1 {[%clk 0:00:55.1]} 30. Kg2 {[%clk 0:00:17.8]} 30... Qe1 {[%clk
0:00:50.7]} 31. Rf2 {[%clk 0:00:13.4]} 31... Ra1 {[%clk 0:00:39.8]} 32. Qxd4
{[%clk 0:00:11.8]} 32... Rc8 {[%clk 0:00:39.9]} 33. Nd6 {[%clk 0:00:11.4]} 33...
Rc2 {[%clk 0:00:37.3]} 34. Ne4 {[%clk 0:00:03.2]} 34... Qxf1+ {[%clk 0:00:37]}
0-1

[Event "*** Titled Tuesday Blitz"]
[Site "Chess.com"]
[Date "2021.02.16"]
[Round "2"]
[White "AttractiveMustard"]
[Black "AungTZ"]
[Result "1-0"]
[WhiteElo "2384"]
[BlackElo "2025"]
[TimeControl "180+1"]
[EndTime "10:18:41 PST"]
[Termination "AttractiveMustard won by resignation"]

1. e4 {[%clk 0:02:57.4]} 1... c5 {[%clk 0:02:27.3]} 2. Nf3 {[%clk 0:02:53.3]}
2... Nc6 {[%clk 0:02:26.5]} 3. d4 {[%clk 0:02:49.7]} 3... cxd4 {[%clk
0:02:26.4]} 4. Nxd4 {[%clk 0:02:50.6]} 4... Nf6 {[%clk 0:02:26.6]} 5. Nc3 {[%clk
0:02:50.6]} 5... d6 {[%clk 0:02:26.7]} 6. Bg5 {[%clk 0:02:50]} 6... e6 {[%clk
0:02:25.5]} 7. Qd2 {[%clk 0:02:50]} 7... a6 {[%clk 0:02:25.7]} 8. O-O-O {[%clk
0:02:49.4]} 8... h6 {[%clk 0:02:25.9]} 9. Nxc6 {[%clk 0:02:47.1]} 9... bxc6
{[%clk 0:02:25.4]} 10. Bf4 {[%clk 0:02:47.6]} 10... d5 {[%clk 0:02:23.9]} 11.
Qe3 {[%clk 0:02:34.2]} 11... Be7 {[%clk 0:02:17.4]} 12. Be2 {[%clk 0:02:27.8]}
12... O-O {[%clk 0:02:16.6]} 13. e5 {[%clk 0:02:17.3]} 13... Nd7 {[%clk
0:02:13]} 14. h4 {[%clk 0:02:17.3]} 14... f5 {[%clk 0:01:47.7]} 15. Rh3 {[%clk
0:01:38]} 15... Kh7 {[%clk 0:01:26]} 16. Rg3 {[%clk 0:01:13]} 16... Nc5 {[%clk
0:00:57.2]} 17. Bh5 {[%clk 0:01:00.9]} 17... Ne4 {[%clk 0:00:42.1]} 18. Nxe4
{[%clk 0:00:49.8]} 18... fxe4 {[%clk 0:00:41.6]} 19. Bg6+ {[%clk 0:00:37.6]}
19... Kg8 {[%clk 0:00:21.2]} 20. Bxh6 {[%clk 0:00:37.6]} 20... Bxh4 {[%clk
0:00:15.9]} 21. Rh1 {[%clk 0:00:05.3]} 21... Bxg3 {[%clk 0:00:12.5]} 22. Qxg3
{[%clk 0:00:06.2]} 1-0

[Event "*** Titled Tuesday Blitz"]
[Site "Chess.com"]
[Date "2021.02.16"]
[Round "2"]
[White "onnoelgersma"]
[Black "IngOscarArdila"]
[Result "1-0"]
[WhiteElo "2422"]
[BlackElo "2143"]
[TimeControl "180+1"]
[EndTime "10:18:43 PST"]
[Termination "onnoelgersma won by resignation"]

1. e4 {[%clk 0:03:00.9]} 1... e5 {[%clk 0:02:59]} 2. Nf3 {[%clk 0:03:01.2]} 2...
Nf6 {[%clk 0:02:59.6]} 3. Nc3 {[%clk 0:03:01.1]} 3... Nc6 {[%clk 0:02:59.4]} 4.
Bb5 {[%clk 0:03:01]} 4... Bb4 {[%clk 0:02:59.6]} 5. d3 {[%clk 0:03:00.7]} 5...
d6 {[%clk 0:02:59.1]} 6. O-O {[%clk 0:03:00.3]} 6... O-O {[%clk 0:02:59.1]} 7.
h3 {[%clk 0:03:00.3]} 7... Bxc3 {[%clk 0:02:57.7]} 8. bxc3 {[%clk 0:03:00.5]}
8... Qe7 {[%clk 0:02:58.3]} 9. c4 {[%clk 0:02:58.7]} 9... Nd8 {[%clk 0:02:57.2]}
10. Ba4 {[%clk 0:02:58.2]} 10... Ne6 {[%clk 0:02:56.5]} 11. Re1 {[%clk
0:02:57.7]} 11... h6 {[%clk 0:02:53.8]} 12. c3 {[%clk 0:02:51.8]} 12... Rd8
{[%clk 0:02:47.9]} 13. d4 {[%clk 0:02:50.6]} 13... Nf8 {[%clk 0:02:47.5]} 14.
Bc2 {[%clk 0:02:47.9]} 14... c5 {[%clk 0:02:46.7]} 15. a4 {[%clk 0:02:43.4]}
15... Ng6 {[%clk 0:02:40.8]} 16. a5 {[%clk 0:02:41.9]} 16... Bd7 {[%clk
0:02:37.3]} 17. Rb1 {[%clk 0:02:39.2]} 17... Rab8 {[%clk 0:02:35.1]} 18. Ba3
{[%clk 0:02:38.8]} 18... b6 {[%clk 0:02:34]} 19. Bc1 {[%clk 0:02:32]} 19... Bc6
{[%clk 0:02:15.5]} 20. d5 {[%clk 0:02:24.5]} 20... Bd7 {[%clk 0:02:13.8]} 21.
axb6 {[%clk 0:02:24]} 21... axb6 {[%clk 0:02:12.3]} 22. Ba4 {[%clk 0:02:23.6]}
22... Bc8 {[%clk 0:02:08.7]} 23. Bc6 {[%clk 0:02:20.6]} 23... Nh5 {[%clk
0:02:05.6]} 24. Ra1 {[%clk 0:02:07.8]} 24... Nhf4 {[%clk 0:02:03.4]} 25. Kh2
{[%clk 0:02:07.9]} 25... Qf6 {[%clk 0:02:01.3]} 26. Ra7 {[%clk 0:02:00.6]} 26...
Nh4 {[%clk 0:01:30.7]} 27. Nxh4 {[%clk 0:01:59.8]} 27... Qxh4 {[%clk 0:01:30.2]}
28. Qf3 {[%clk 0:02:00.2]} 28... g5 {[%clk 0:01:09.6]} 29. Qg3 {[%clk
0:01:59.2]} 29... Qxg3+ {[%clk 0:01:06.3]} 30. fxg3 {[%clk 0:01:58.6]} 30... Nd3
{[%clk 0:01:06.5]} 31. Rf1 {[%clk 0:01:58.1]} 31... Nxc1 {[%clk 0:00:46.1]} 32.
Rxc1 {[%clk 0:01:59]} 32... f5 {[%clk 0:00:32.8]} 33. exf5 {[%clk 0:01:58.9]}
33... Bxf5 {[%clk 0:00:32.7]} 34. Rf1 {[%clk 0:01:58.3]} 34... Rf8 {[%clk
0:00:31.5]} 35. g4 {[%clk 0:01:58.3]} 35... Bc2 {[%clk 0:00:29.3]} 36. Rxf8+
{[%clk 0:01:53.2]} 36... Rxf8 {[%clk 0:00:29.3]} 37. Rd7 {[%clk 0:01:53.7]}
37... Rf6 {[%clk 0:00:28.7]} 38. Rb7 {[%clk 0:01:45.3]} 38... Bd3 {[%clk
0:00:28.6]} 39. Bd7 {[%clk 0:01:40.2]} 39... Rf2 {[%clk 0:00:26.2]} 40. Be6+
{[%clk 0:01:38.2]} 40... Kh8 {[%clk 0:00:23.7]} 41. Kg1 {[%clk 0:01:38]} 41...
Rc2 {[%clk 0:00:21.9]} 42. Rxb6 {[%clk 0:01:35.7]} 42... Be4 {[%clk 0:00:20.5]}
43. Rxd6 {[%clk 0:01:35.7]} 43... Rxg2+ {[%clk 0:00:19.8]} 44. Kf1 {[%clk
0:01:36.2]} 44... Rc2 {[%clk 0:00:19.3]} 45. Rd8+ {[%clk 0:01:35.8]} 45... Kg7
{[%clk 0:00:19.1]} 46. d6 {[%clk 0:01:35.6]} 46... Kf6 {[%clk 0:00:18.9]} 47. d7
{[%clk 0:01:35.1]} 47... Rd2 {[%clk 0:00:16.7]} 48. Re8 {[%clk 0:01:33.7]} 48...
Bg2+ {[%clk 0:00:13.9]} 49. Ke1 {[%clk 0:01:29.6]} 49... Rd6 {[%clk 0:00:14.3]}
50. d8=Q+ {[%clk 0:01:28.9]} 50... Rxd8 {[%clk 0:00:14.6]} 51. Rxd8 {[%clk
0:01:29.8]} 51... Kxe6 {[%clk 0:00:15.4]} 52. Rc8 {[%clk 0:01:28.1]} 52... Kd6
{[%clk 0:00:14.7]} 53. Rh8 {[%clk 0:01:28.4]} 53... Bxh3 {[%clk 0:00:14.7]} 54.
Rxh6+ {[%clk 0:01:27.9]} 1-0

[Event "*** Titled Tuesday Blitz"]
[Site "Chess.com"]
[Date "2021.02.16"]
[Round "2"]
[White "noamapplesauce"]
[Black "mr_gustavo"]
[Result "1-0"]
[WhiteElo "2126"]
[BlackElo "2389"]
[TimeControl "180+1"]
[EndTime "10:18:43 PST"]
[Termination "noamapplesauce won by resignation"]

1. e4 {[%clk 0:03:00.9]} 1... c5 {[%clk 0:02:58.4]} 2. Nf3 {[%clk 0:02:59.9]}
2... d6 {[%clk 0:02:58.1]} 3. Bb5+ {[%clk 0:02:59.1]} 3... Bd7 {[%clk
0:02:57.6]} 4. Bxd7+ {[%clk 0:02:59.3]} 4... Qxd7 {[%clk 0:02:58.5]} 5. O-O
{[%clk 0:02:58.9]} 5... Nf6 {[%clk 0:02:58.4]} 6. Qe2 {[%clk 0:02:57.9]} 6...
Nc6 {[%clk 0:02:57.8]} 7. Rd1 {[%clk 0:02:58.5]} 7... e6 {[%clk 0:02:56.5]} 8.
d4 {[%clk 0:02:56.3]} 8... cxd4 {[%clk 0:02:56.2]} 9. Nxd4 {[%clk 0:02:56.6]}
9... Nxd4 {[%clk 0:02:57.1]} 10. Rxd4 {[%clk 0:02:57]} 10... Qc6 {[%clk
0:02:50.3]} 11. c4 {[%clk 0:02:54.2]} 11... Be7 {[%clk 0:02:46.5]} 12. Nc3
{[%clk 0:02:52.4]} 12... O-O {[%clk 0:02:44.9]} 13. Rd1 {[%clk 0:02:44.1]} 13...
Rac8 {[%clk 0:02:43.3]} 14. b3 {[%clk 0:02:39.2]} 14... b5 {[%clk 0:02:43.1]}
15. Nxb5 {[%clk 0:02:27.7]} 15... Qxe4 {[%clk 0:02:38]} 16. Qxe4 {[%clk
0:02:23]} 16... Nxe4 {[%clk 0:02:38.9]} 17. Nxa7 {[%clk 0:02:21.5]} 17... Ra8
{[%clk 0:02:39.3]} 18. Nb5 {[%clk 0:02:21.2]} 18... Bf6 {[%clk 0:02:39]} 19. Rb1
{[%clk 0:01:57.6]} 19... Rxa2 {[%clk 0:02:37.5]} 20. f3 {[%clk 0:01:55.2]} 20...
Nc3 {[%clk 0:02:00.4]} 21. Nxc3 {[%clk 0:01:54.2]} 21... Bxc3 {[%clk 0:02:01.3]}
22. Rxd6 {[%clk 0:01:46.8]} 22... Bb4 {[%clk 0:02:01.8]} 23. Rd7 {[%clk
0:01:39.6]} 23... Rfa8 {[%clk 0:01:49.4]} 24. Be3 {[%clk 0:01:28.4]} 24... Re2
{[%clk 0:01:43.6]} 25. Rb7 {[%clk 0:01:15.2]} 25... Rxe3 {[%clk 0:01:29.9]} 26.
Rxb4 {[%clk 0:01:14.3]} 26... Re2 {[%clk 0:01:30.8]} 27. Kf1 {[%clk 0:01:07.9]}
27... Rc2 {[%clk 0:01:26.4]} 28. Re1 {[%clk 0:00:58.7]} 28... g6 {[%clk
0:01:19.8]} 29. Re2 {[%clk 0:00:58.9]} 29... Ra1+ {[%clk 0:01:09.6]} 30. Kf2
{[%clk 0:00:58.1]} 30... Rc3 {[%clk 0:01:10.5]} 31. Rb2 {[%clk 0:00:51.6]} 31...
Kg7 {[%clk 0:01:05.1]} 32. Rb7 {[%clk 0:00:51]} 32... Kf6 {[%clk 0:01:04.1]} 33.
Rc7 {[%clk 0:00:46.6]} 33... Rcc1 {[%clk 0:00:58.5]} 34. b4 {[%clk 0:00:43.7]}
34... Rf1+ {[%clk 0:00:56.8]} 35. Ke3 {[%clk 0:00:40.8]} 35... Rfe1+ {[%clk
0:00:51.2]} 36. Kd4 {[%clk 0:00:40]} 36... e5+ {[%clk 0:00:45.1]} 37. Kc5 {[%clk
0:00:38]} 37... Ke6 {[%clk 0:00:45.6]} 38. b5 {[%clk 0:00:36.8]} 38... f5 {[%clk
0:00:43.7]} 39. b6 {[%clk 0:00:36.1]} 39... Ra5+ {[%clk 0:00:40.4]} 40. Kb4
{[%clk 0:00:29]} 40... Ra8 {[%clk 0:00:38.8]} 41. b7 {[%clk 0:00:28.1]} 41...
Rb8 {[%clk 0:00:38.9]} 42. Kc5 {[%clk 0:00:26.6]} 1-0

[Event "*** Titled Tuesday Blitz"]
[Site "Chess.com"]
[Date "2021.02.16"]
[Round "2"]
[White "esapunov"]
[Black "atalz0"]
[Result "1-0"]
[WhiteElo "2677"]
[BlackElo "2399"]
[TimeControl "180+1"]
[EndTime "10:18:44 PST"]
[Termination "esapunov won on time"]

1. c4 {[%clk 0:03:00.9]} 1... e6 {[%clk 0:02:59.7]} 2. Nf3 {[%clk 0:03:00.5]}
2... d5 {[%clk 0:02:59.5]} 3. d4 {[%clk 0:03:00.5]} 3... a6 {[%clk 0:02:58.3]}
4. c5 {[%clk 0:03:00.1]} 4... b6 {[%clk 0:02:58.1]} 5. cxb6 {[%clk 0:03:00.4]}
5... cxb6 {[%clk 0:02:59]} 6. Bf4 {[%clk 0:03:00.1]} 6... Bd6 {[%clk 0:02:58.3]}
7. e3 {[%clk 0:03:00.4]} 7... Bxf4 {[%clk 0:02:57.8]} 8. exf4 {[%clk 0:03:00.8]}
8... Nf6 {[%clk 0:02:53.4]} 9. Bd3 {[%clk 0:03:00.7]} 9... Bb7 {[%clk
0:02:52.2]} 10. O-O {[%clk 0:03:00.8]} 10... O-O {[%clk 0:02:51.1]} 11. Qe2
{[%clk 0:03:00.9]} 11... Nc6 {[%clk 0:02:44.6]} 12. Nc3 {[%clk 0:02:58.8]} 12...
b5 {[%clk 0:02:41.3]} 13. Rfd1 {[%clk 0:02:54]} 13... Qb6 {[%clk 0:02:31.8]} 14.
g3 {[%clk 0:02:50.1]} 14... g6 {[%clk 0:02:29.4]} 15. Bb1 {[%clk 0:02:45.7]}
15... Rac8 {[%clk 0:02:21.7]} 16. h4 {[%clk 0:02:45]} 16... Rfe8 {[%clk
0:02:04.3]} 17. Bc2 {[%clk 0:02:37]} 17... Nb4 {[%clk 0:01:51.1]} 18. Bb1 {[%clk
0:02:31.9]} 18... Rc4 {[%clk 0:01:15.5]} 19. a4 {[%clk 0:02:14]} 19... Rec8
{[%clk 0:01:03.8]} 20. axb5 {[%clk 0:02:11.3]} 20... axb5 {[%clk 0:01:04.7]} 21.
Qe3 {[%clk 0:02:00.1]} 21... Ng4 {[%clk 0:00:58.8]} 22. Qd2 {[%clk 0:01:59.4]}
22... Nc6 {[%clk 0:00:49.2]} 23. Ba2 {[%clk 0:01:41.3]} 23... Rb4 {[%clk
0:00:48.4]} 24. Bxd5 {[%clk 0:01:32.3]} 24... exd5 {[%clk 0:00:19.7]} 25. Nxd5
{[%clk 0:01:30.9]} 25... Nxd4 {[%clk 0:00:19.8]} 26. Ne7+ {[%clk 0:00:31.4]}
26... Kf8 {[%clk 0:00:14.1]} 27. Nxg6+ {[%clk 0:00:31.4]} 27... hxg6 {[%clk
0:00:07.9]} 28. Qxb4+ {[%clk 0:00:30.6]} 28... Kg8 {[%clk 0:00:03.7]} 29. Nxd4
{[%clk 0:00:30.2]} 29... Qf6 {[%clk 0:00:01.4]} 30. Qd2 {[%clk 0:00:26.2]} 30...
Rd8 {[%clk 0:00:01.1]} 31. Qe2 {[%clk 0:00:26.1]} 1-0